fUSD/lending_fUSD_20250405
["ID","MTS","AMOUNT","RATE_DAILY","PERIOD"]
[357204082,1743892248674,-500.0,0.00031505,2]
[357204083,1743892248683,-506.80120966,0.00031505,2]
[357204084,1743892248693,-500.0,0.00031505,2]
[357204085,1743892248703,-500.0,0.00031505,2]
[357204086,1743892248712,-510.98338077,0.00031505,2]
[357204087,1743892248721,-500.0,0.00031505,2]
[357204088,1743892248731,-500.0,0.00031505,2]
[357204089,1743892248740,-500.0,0.00031505,2]
[357204090,1743892248749,-500.0,0.00031505,2]
[357204091,1743892248758,-500.0,0.00031505,2]
[357204092,1743892248768,-1136.07,0.00031505,2]
[357204093,1743892248777,-160.33975781,0.00031505,2]
[357204094,1743892248786,-500.0,0.00031505,2]
[357204095,1743892248795,-507.21319461,0.00031505,2]
[357204096,1743892248804,-502.79105217,0.00031505,2]
[357204097,1743892248813,-637.97156898,0.00031505,2]
[357204098,1743892248822,-539.72939969,0.00031505,2]
[357204099,1743892248831,-500.03,0.00031505,2]
[357204100,1743892248840,-500.0,0.00031505,2]
[357204101,1743892248850,-500.0,0.00031505,2]
[357204102,1743892248859,-500.0,0.00031505,2]
[357204103,1743892248868,-500.0,0.00031505,2]
[357204104,1743892248877,-500.0,0.00031505,2]
[357204105,1743892248887,-455.66777659,0.00031505,2]
[357204106,1743892248896,-500.0,0.00031505,2]
[357204107,1743892248906,-505.37195443,0.00031505,2]
[357204108,1743892248915,-500.0,0.00031505,2]
[357204109,1743892248925,-500.0,0.00031505,2]
[357204110,1743892248934,-580.13745359,0.00031505,2]
[357204111,1743892248943,-500.0,0.00031505,2]
[357204112,1743892248953,-5132.98,0.00031505,2]
[357204113,1743892248962,-500.0,0.00031505,2]
[357204114,1743892248971,-500.0,0.00031505,2]
[357204115,1743892248980,-500.0,0.00031505,2]
[357204116,1743892248989,-500.0,0.00031505,2]
[357204117,1743892248998,-2053.9,0.00031505,2]
[357204118,1743892249008,-500.0,0.00031505,2]
[357204119,1743892249017,-500.0,0.00031505,2]
[357204120,1743892249026,-516.93911319,0.00031505,2]
[357204121,1743892249035,-500.0,0.00031505,2]
[357204122,1743892249044,-756.46,0.00031505,2]
[357204123,1743892249054,-500.0,0.00031505,2]
[357204124,1743892249063,-645.22791666,0.00031505,2]
[357204125,1743892249072,-500.0,0.00031505,2]
[357204126,1743892249081,-724.39,0.00031505,2]
[357204127,1743892249090,-500.0,0.00031505,2]
[357204128,1743892249100,-304.04106276,0.00031505,2]
[357204129,1743892249109,-500.0,0.00031505,2]
[357204130,1743892249118,-500.0,0.00031505,2]
[357204131,1743892249127,-9863.12,0.00031505,2]
[357204132,1743892249136,-500.0,0.00031505,2]
[357204133,1743892249145,-587.44971721,0.00031505,2]
[357204134,1743892249154,-372.6700148,0.00031505,2]
[357204135,1743892249163,-581.99597756,0.00031505,2]
[357204136,1743892249172,-630.22839388,0.00031505,2]
[357204137,1743892249182,-541.66423419,0.00031505,2]
[357204138,1743892249191,-500.0,0.00031505,2]
[357204139,1743892249200,-533.75570278,0.00031505,2]
[357204140,1743892249209,-500.0,0.00031505,2]
[357204141,1743892249218,-548.57018206,0.00031505,2]
[357204142,1743892249227,-599.90935513,0.00031505,2]
[357204143,1743892249236,-555.02303931,0.00031505,2]
[357204144,1743892249245,-500.0,0.00031505,2]
[357204145,1743892249254,-42.61721634,0.00031505,2]
[357204146,1743892249369,-457.38278366,0.00031505,2]
[357204147,1743892249378,-1217.37,0.00031505,2]
[357204148,1743892249387,-500.0,0.00031505,2]
[357204149,1743892249396,-500.0,0.00031505,2]
[357204150,1743892249406,-500.0,0.00031505,2]
[357204151,1743892249416,-500.0,0.00031505,2]
[357204152,1743892249426,-1289.56569618,0.00031505,2]
[357204153,1743892249448,-66.20430382,0.00031505,2]
[357204154,1743892249458,-993.03832792,0.00031505,2]
[357204155,1743892249467,-500.0,0.00031505,2]
[357204156,1743892249476,-500.0,0.00031505,2]
[357204157,1743892249485,-500.0,0.00031505,2]
[357204158,1743892249494,-464.63554163,0.00031505,2]
[357204159,1743892249503,-63.24711463,0.00031505,2]
[357204160,1743892249761,-153.03,0.00024799,2]
[357204161,1743892249772,-550.90728654,0.00031505,2]
[357204162,1743892249783,-504.2921904,0.00031505,2]
[357204163,1743892249794,-347.99408934,0.00031505,2]
[357204164,1743892249806,-500.0,0.00031505,2]
[357204165,1743892249819,-500.0,0.00031505,2]
[357204166,1743892249831,-500.0,0.00031505,2]
[357204167,1743892249843,-500.0,0.00031505,2]
[357204168,1743892249855,-500.0,0.00031505,2]
[357204169,1743892249867,-199.94812978,0.00031506,2]
[357204170,1743892250120,-153.03,0.00024799,2]
[357204171,1743892250132,-105.88099997,0.00024799,2]
[357204172,1743892250146,-47.14900003,0.00024799,2]
[357204173,1743892250158,-153.03,0.00024799,2]
[357204174,1743892250170,-153.03,0.00024799,2]
[357204175,1743892250181,-153.03,0.00024799,2]
[357204176,1743892250193,-153.03,0.00024799,2]
[357204177,1743892250203,-153.03,0.00024799,2]
[357204178,1743892250214,-500.0,0.00030136,2]
[357204179,1743892250223,-349.10040878,0.00030136,2]
[357204180,1743892250233,-512.60958313,0.00030136,2]
[357204181,1743892250244,-500.0,0.00030136,2]
[357204182,1743892250255,-511.71225205,0.00030136,2]
[357204183,1743892250268,-500.0,0.0003041,2]
[357204184,1743892250280,-226.57541434,0.00030684,2]
[357204185,1743892250292,-273.42458566,0.00030684,2]
[357204186,1743892250302,-399.12132749,0.00030958,2]
[357204187,1743892250314,-100.87867251,0.00030958,2]
[357204188,1743892250324,-527.65764043,0.00031231,2]
[357204189,1743892250335,-78.85348866,0.00031231,2]
[357204190,1743892250349,-372.41677871,0.00031231,2]
[357204191,1743892250365,-48.72973263,0.00031231,2]
[357204192,1743892250376,-500.0,0.00031232,2]
[357204193,1743892250387,-499.23510197,0.00031504,2]
[357204194,1743892250397,-151.0,0.00031505,7]
[357204195,1743892250409,-269.02595406,0.00031505,2]
[357204196,1743892250419,-300.05187022,0.00031506,2]
[357204197,1743892250430,-500.0,0.00031506,2]
[357204198,1743892250442,-668.27,0.00031506,2]
[357204199,1743892250454,-683.11,0.00031506,2]
[357204200,1743892250465,-500.0,0.00031506,2]
[357204201,1743892250475,-500.0,0.00031506,2]
[357204202,1743892250487,-500.0,0.00031506,2]
[357204203,1743892250497,-500.0,0.00031506,2]
[357204204,1743892250508,-4035.3,0.00031506,2]
[357204205,1743892250519,-500.0,0.00031506,2]
[357204206,1743892250531,-500.0,0.00031506,2]
[357204207,1743892250543,-500.0,0.00031506,2]
[357204208,1743892250555,-500.0,0.00031506,2]
[357204209,1743892250570,-500.0,0.00031506,2]
[357204210,1743892250580,-500.0,0.00031506,2]
[357204211,1743892250591,-500.0,0.00031506,2]
[357204212,1743892250602,-500.0,0.00031506,2]
[357204213,1743892250613,-500.0,0.00031506,2]
[357204214,1743892250624,-500.6920515,0.00031573,5]
[357204215,1743892250634,-500.0,0.00031573,5]
[357204216,1743892250646,-500.0,0.00031573,5]
[357204217,1743892250657,-500.0,0.00031778,2]
[357204218,1743892250668,-200.0,0.00031778,2]
[357204219,1743892250678,-500.0,0.00031778,2]
[357204220,1743892250689,-500.0,0.00031778,2]
[357204221,1743892250699,-500.0,0.00031778,2]
[357204222,1743892250710,-500.0,0.00031778,2]
[357204223,1743892250720,-500.0,0.00031778,2]
[357204224,1743892250731,-500.0,0.00031778,2]
[357204225,1743892250741,-500.0,0.00031778,2]
[357204226,1743892250752,-500.0,0.00031778,2]
[357204227,1743892250763,-500.0,0.00031778,2]
[357204228,1743892250773,-500.0,0.00031778,2]
[357204229,1743892250784,-500.0,0.00031778,2]
[357204230,1743892250794,-500.0,0.00031778,2]
[357204231,1743892250804,-500.0,0.00031778,2]
[357204232,1743892250815,-500.0,0.00031778,2]
[357204233,1743892250826,-500.0,0.00031778,2]
[357204234,1743892250838,-500.0,0.00031778,2]
[357204235,1743892250849,-500.0,0.00031778,2]
[357204236,1743892250859,-500.0,0.00031778,2]
[357204237,1743892250871,-500.0,0.00031778,2]
[357204238,1743892250882,-500.0,0.00031778,2]
[357204239,1743892250893,-641.38,0.00031778,2]
[357204240,1743892250905,-2000.0,0.00031778,2]
[357204241,1743892250915,-500.0,0.00031778,2]
[357204242,1743892250926,-500.0,0.00031778,2]
[357204243,1743892250937,-500.0,0.00031778,2]
[357204244,1743892250949,-500.0,0.00031778,2]
[357204245,1743892250961,-500.0,0.00031778,2]
[357204246,1743892250973,-500.0,0.00031778,2]
[357204247,1743892250984,-500.0,0.00031778,2]
[357204248,1743892250993,-500.0,0.00031778,2]
[357204249,1743892251002,-976.66,0.00031778,2]
[357204250,1743892251011,-500.0,0.00031778,2]
[357204251,1743892251021,-500.0,0.00031778,2]
[357204252,1743892251030,-563.60624692,0.00031778,2]
[357204253,1743892251039,-500.0,0.00031778,2]
[357204254,1743892251048,-500.0,0.00031778,2]
[357204255,1743892251058,-203.25128227,0.00031778,2]
[357204256,1743892251067,-500.0,0.00031778,2]
[357204257,1743892251077,-585.81034217,0.00031778,2]
[357204258,1743892251086,-532.47157258,0.00031778,2]
[357204259,1743892251096,-547.94379312,0.00031778,2]
[357204260,1743892251106,-517.48751644,0.00031778,2]
[357204261,1743892251115,-523.19052846,0.00031778,2]
[357204262,1743892251125,-548.36334681,0.00031778,2]
[357204263,1743892251134,-500.0,0.00031778,2]
[357204264,1743892251143,-534.71660179,0.00031778,2]
[357204265,1743892251153,-544.72248066,0.00031778,2]
[357204266,1743892251162,-444.56974069,0.00031778,2]
[357204267,1743892251172,-500.0,0.00031778,2]
[357204268,1743892251181,-557.23733383,0.00031778,2]
[357204269,1743892251192,-371.386234,0.00031778,2]
[357204270,1743892251201,-536.63847916,0.00031778,2]
[357204271,1743892251211,-567.45046698,0.00031778,2]
[357204272,1743892251220,-517.07065362,0.00031778,2]
[357204273,1743892251229,-500.0,0.00031778,2]
[357204274,1743892251238,-462.18715791,0.00031778,2]
[357204275,1743892251247,-500.0,0.00031778,2]
[357204276,1743892251256,-500.0,0.00031778,2]
[357204277,1743892251265,-500.0,0.00031778,2]
[357204278,1743892251275,-500.0,0.00031778,2]
[357204279,1743892251284,-604.19363275,0.00031778,2]
[357204280,1743892251294,-532.71598975,0.00031778,2]
[357204281,1743892251492,-500.0,0.00031778,2]
[357204282,1743892251506,-573.04108844,0.00031778,2]
[357204283,1743892251516,-527.01290257,0.00031778,2]
[357204284,1743892251525,-500.0,0.00031778,2]
[357204285,1743892251535,-500.0,0.00031778,2]
[357204286,1743892251543,-533.75596755,0.00031778,2]
[357204287,1743892251553,-539.64479956,0.00031778,2]
[357204288,1743892251562,-500.0,0.00031779,2]
[357204289,1743892251575,-500.0,0.00031779,2]
[357204290,1743892251584,-500.0,0.00031779,2]
[357204291,1743892251593,-500.0,0.00031779,2]
[357204292,1743892251602,-500.0,0.00031779,2]
[357204293,1743892251612,-500.0,0.00031779,2]
[357204294,1743892251621,-500.0,0.00031779,2]
[357204295,1743892251630,-500.0,0.00031779,2]
[357204296,1743892251639,-500.0,0.00031779,2]
[357204297,1743892251648,-500.0,0.00031779,2]
[357204298,1743892251657,-500.0,0.00031779,2]
[357204299,1743892251666,-500.0,0.00031779,2]
[357204300,1743892251676,-161.29373706,0.00031779,2]
[357204301,1743892251684,-500.0,0.00031779,2]
[357204302,1743892251693,-500.0,0.00031779,2]
[357204303,1743892251702,-500.0,0.00031779,2]
[357204304,1743892251711,-500.0,0.00031779,2]
[357204305,1743892251720,-500.0,0.00031779,2]
[357204306,1743892251729,-500.0,0.00031779,2]
[357204307,1743892251738,-256.37531023,0.00031779,2]
[357204308,1743892251746,-500.0,0.00031779,2]
[357204309,1743892251756,-500.0,0.00031779,2]
[357204310,1743892251765,-500.0,0.00031779,2]
[357204311,1743892251773,-639.85800621,0.00031779,2]
[357204312,1743892251782,-500.0,0.00031779,2]
[357204313,1743892251791,-500.0,0.00031779,2]
[357204314,1743892251799,-500.0,0.00031779,2]
[357204315,1743892251808,-500.0,0.00031779,2]
[357204316,1743892251817,-500.0,0.00031779,2]
[357204317,1743892251826,-338.77764217,0.00031779,2]
[357204318,1743892251835,-500.0,0.00031779,2]
[357204319,1743892251843,-500.0,0.00031779,2]
[357204320,1743892251852,-500.0,0.00031779,2]
[357204321,1743892251862,-500.0,0.00031779,2]
[357204322,1743892251871,-500.0,0.00031779,2]
[357204323,1743892251880,-539.3872193,0.00031779,2]
[357204324,1743892251889,-500.0,0.00031779,2]
[357204325,1743892251898,-591.8857068,0.00031779,2]
[357204326,1743892251907,-500.0,0.00031779,2]
[357204327,1743892251916,-500.0,0.00031779,2]
[357204328,1743892251925,-500.0,0.00031779,2]
[357204329,1743892251934,-500.0,0.00031779,2]
[357204330,1743892251943,-500.0,0.00031779,2]
[357204331,1743892251952,-500.0,0.00031779,2]
[357204332,1743892251961,-500.0,0.00031779,2]
[357204333,1743892251969,-500.0,0.00031779,2]
[357204334,1743892251978,-7902.48,0.00031779,2]
[357204335,1743892251987,-500.0,0.00031779,2]
[357204336,1743892251995,-500.0,0.00031779,2]
[357204337,1743892252004,-580.22322428,0.00031779,2]
[357204338,1743892252013,-500.0,0.00031779,2]
[357204339,1743892252021,-564.44,0.00031779,2]
[357204340,1743892252030,-500.0,0.00031779,2]
[357204341,1743892252038,-500.0,0.00031779,2]
[357204342,1743892252047,-500.0,0.00031779,2]
[357204343,1743892252056,-648.19390112,0.00031779,2]
[357204344,1743892252065,-500.0,0.00031779,2]
[357204345,1743892252074,-500.0,0.00031779,2]
[357204346,1743892252083,-1136.07,0.00031779,2]
[357204347,1743892252091,-500.0,0.00031779,2]
[357204348,1743892252100,-500.03,0.00031779,2]
[357204349,1743892252109,-199.66565074,0.00031779,2]
[357204350,1743892252118,-500.0,0.00031779,2]
[357204351,1743892252127,-500.0,0.00031779,2]
[357204352,1743892252137,-500.0,0.00031779,2]
[357204353,1743892252146,-500.0,0.00031779,2]
[357204354,1743892252155,-322.06576416,0.00031779,2]
[357204355,1743892252165,-500.0,0.00031779,2]
[357204356,1743892252174,-500.0,0.00031779,2]
[357204357,1743892252183,-500.0,0.00031779,2]
[357204358,1743892252193,-5132.98,0.00031779,2]
[357204359,1743892252202,-500.0,0.00031779,2]
[357204360,1743892252211,-552.19827443,0.00031779,2]
[357204361,1743892252220,-371.4120421,0.00031779,2]
[357204362,1743892252229,-500.0,0.00031779,2]
[357204363,1743892252238,-2053.9,0.00031779,2]
[357204364,1743892252247,-500.0,0.00031779,2]
[357204365,1743892252256,-608.39600694,0.00031779,2]
[357204366,1743892252265,-500.0,0.00031779,2]
[357204367,1743892252274,-756.46,0.00031779,2]
[357204368,1743892252283,-500.0,0.00031779,2]
[357204369,1743892252292,-500.0,0.00031779,2]
[357204370,1743892252301,-724.39,0.00031779,2]
[357204371,1743892252310,-162.71204476,0.00031779,2]
[357204372,1743892252320,-500.0,0.00031779,2]
[357204373,1743892252330,-500.0,0.00031779,2]
[357204374,1743892252339,-159.898438,0.00031779,7]
[357204375,1743892252348,-9863.12,0.00031779,2]
[357204376,1743892252358,-500.0,0.00031779,2]
[357204377,1743892252368,-500.0,0.00031779,2]
[357204378,1743892252378,-151.0,0.00031779,7]
[357204379,1743892252387,-500.0,0.00031779,2]
[357204380,1743892252397,-500.0,0.00031779,2]
[357204381,1743892252406,-500.0,0.00031779,2]
[357204382,1743892252415,-1217.37,0.00031779,2]
[357204383,1743892252425,-500.0,0.00031779,2]
[357204384,1743892252434,-500.0,0.00031779,2]
[357204385,1743892252443,-500.0,0.00031779,2]
[357204386,1743892252453,-500.0,0.00031779,2]
[357204387,1743892252463,-1355.77,0.00031779,2]
[357204388,1743892252472,-500.0,0.00031779,2]
[357204389,1743892252482,-500.0,0.00031779,2]
[357204390,1743892252491,-500.0,0.00031779,2]
[357204391,1743892252501,-500.0,0.00031779,2]
[357204392,1743892252511,-500.0,0.00031779,2]
[357204393,1743892252521,-500.0,0.00031779,2]
[357204394,1743892252530,-500.0,0.00031779,2]
[357204395,1743892252540,-500.0,0.00031779,2]
[357204396,1743892252549,-151.0,0.00031779,7]
[357204397,1743892252558,-500.0,0.0003178,2]
[357204398,1743892252571,-500.0,0.0003178,2]
[357204399,1743892252584,-668.27,0.0003178,2]
[357204400,1743892252593,-683.11,0.0003178,2]
[357204401,1743892252603,-500.0,0.0003178,2]
[357204402,1743892252615,-500.0,0.0003178,2]
[357204403,1743892252625,-500.0,0.0003178,2]
[357204404,1743892252635,-4035.3,0.0003178,2]
[357204405,1743892252644,-500.0,0.0003178,2]
[357204406,1743892252654,-500.0,0.0003178,2]
[357204407,1743892252664,-500.0,0.0003178,2]
[357204408,1743892252673,-500.0,0.0003178,2]
[357204409,1743892252683,-500.0,0.0003178,2]
[357204410,1743892252693,-500.0,0.0003178,2]
[357204411,1743892252703,-500.0,0.0003178,2]
[357204412,1743892252714,-500.0,0.0003178,2]
[357204413,1743892252724,-500.0,0.0003178,2]
[357204414,1743892252733,-500.0,0.0003178,2]
[357204415,1743892252742,-150.0,0.0003179,2]
[357204416,1743892252752,-727.62,0.00031799,2]
[357204417,1743892252761,-150.0,0.00031807,2]
[357204418,1743892252771,-150.0,0.00031812,2]
[357204419,1743892252780,-150.0,0.00031824,2]
[357204420,1743892252789,-5473.37260126,0.00031847,2]
[357204421,1743892252799,-792.44,0.00031848,2]
[357204422,1743892252808,-150.0,0.00031944,2]
[357204423,1743892252817,-150.0,0.00031981,2]
[357204424,1743892252827,-150.0,0.00032005,2]
[357204425,1743892252837,-150.0,0.00032018,2]
[357204426,1743892252846,-355.6978993,0.00032042,2]
[357204427,1743892252855,-500.0,0.00032052,2]
[357204428,1743892252865,-500.0,0.00032052,2]
[357204429,1743892252874,-500.0,0.00032052,2]
[357204430,1743892252883,-612.02476807,0.00032052,2]
[357204431,1743892252893,-500.0,0.00032052,2]
[357204432,1743892252902,-500.0,0.00032052,2]
[357204433,1743892252912,-500.0,0.00032052,2]
[357204434,1743892252921,-500.0,0.00032052,2]
[357204435,1743892252930,-500.0,0.00032052,2]
[357204436,1743892252939,-500.0,0.00032052,2]
[357204437,1743892252948,-547.75193021,0.00032052,2]
[357204438,1743892252957,-500.0,0.00032052,2]
[357204439,1743892252967,-500.0,0.00032052,2]
[357204440,1743892252976,-500.0,0.00032052,2]
[357204441,1743892252985,-500.0,0.00032052,2]
[357204442,1743892252994,-641.38,0.00032052,2]
[357204443,1743892253003,-2000.0,0.00032052,2]
[357204444,1743892253012,-500.0,0.00032052,2]
[357204445,1743892253022,-500.0,0.00032052,2]
[357204446,1743892253031,-500.0,0.00032052,2]
[357204447,1743892253040,-500.0,0.00032052,2]
[357204448,1743892253049,-500.0,0.00032052,2]
[357204449,1743892253059,-500.0,0.00032052,2]
[357204450,1743892253068,-500.0,0.00032052,2]
[357204451,1743892253077,-500.0,0.00032052,2]
[357204452,1743892253086,-976.66,0.00032052,2]
[357204453,1743892253095,-500.0,0.00032052,2]
[357204454,1743892253104,-500.0,0.00032052,2]
[357204455,1743892253113,-500.0,0.00032052,2]
[357204456,1743892253122,-500.0,0.00032052,2]
[357204457,1743892253132,-500.0,0.00032052,2]
[357204458,1743892253142,-500.0,0.00032052,2]
[357204459,1743892253152,-500.0,0.00032052,2]
[357204460,1743892253161,-500.0,0.00032052,2]
[357204461,1743892253170,-500.0,0.00032052,2]
[357204462,1743892253180,-500.0,0.00032052,2]
[357204463,1743892253190,-500.0,0.00032052,2]
[357204464,1743892253201,-500.0,0.00032052,2]
[357204465,1743892253210,-500.0,0.00032052,2]
[357204466,1743892253220,-500.0,0.00032052,2]
[357204467,1743892253230,-500.0,0.00032052,2]
[357204468,1743892253239,-500.0,0.00032053,2]
[357204469,1743892253249,-500.0,0.00032053,2]
[357204470,1743892253259,-500.0,0.00032053,2]
[357204471,1743892253268,-500.0,0.00032053,2]
[357204472,1743892253277,-500.0,0.00032053,2]
[357204473,1743892253286,-500.0,0.00032053,2]
[357204474,1743892253296,-500.0,0.00032053,2]
[357204475,1743892253305,-500.0,0.00032053,2]
[357204476,1743892253315,-500.0,0.00032053,2]
[357204477,1743892253324,-500.0,0.00032053,2]
[357204478,1743892253334,-500.0,0.00032053,2]
[357204479,1743892253343,-500.0,0.00032053,2]
[357204480,1743892253353,-500.0,0.00032053,2]
[357204481,1743892253362,-500.0,0.00032053,2]
[357204482,1743892253371,-500.0,0.00032053,2]
[357204483,1743892253381,-500.0,0.00032053,2]
[357204484,1743892253390,-500.0,0.00032053,2]
[357204485,1743892253399,-500.0,0.00032053,2]
[357204486,1743892253408,-500.0,0.00032053,2]
[357204487,1743892253418,-500.0,0.00032053,2]
[357204488,1743892253427,-500.0,0.00032053,2]
[357204489,1743892253436,-500.0,0.00032053,2]
[357204490,1743892253446,-500.0,0.00032053,2]
[357204491,1743892253455,-500.0,0.00032053,2]
[357204492,1743892253465,-500.0,0.00032053,2]
[357204493,1743892253474,-500.0,0.00032053,2]
[357204494,1743892253483,-500.0,0.00032053,2]
[357204495,1743892253492,-500.0,0.00032053,2]
[357204496,1743892253502,-500.0,0.00032053,2]
[357204497,1743892253510,-500.0,0.00032053,2]
[357204498,1743892253520,-500.0,0.00032053,2]
[357204499,1743892253529,-500.0,0.00032053,2]
[357204500,1743892253539,-500.0,0.00032053,2]
[357204501,1743892253549,-500.0,0.00032053,2]
[357204502,1743892253558,-412.95455441,0.00032053,2]
[357204503,1743892253570,-500.0,0.00032053,2]
[357204504,1743892253580,-500.0,0.00032053,2]
[357204505,1743892253590,-217.36633884,0.00032053,2]
[357204506,1743892253599,-500.0,0.00032053,2]
[357204507,1743892253610,-500.0,0.00032053,2]
[357204508,1743892253620,-7902.48,0.00032053,2]
[357204509,1743892253629,-500.0,0.00032053,2]
[357204510,1743892253639,-500.0,0.00032053,2]
[357204511,1743892253650,-500.0,0.00032053,2]
[357204512,1743892253659,-564.44,0.00032053,2]
[357204513,1743892253668,-500.0,0.00032053,2]
[357204514,1743892253678,-500.0,0.00032053,2]
[357204515,1743892253687,-500.0,0.00032053,2]
[357204516,1743892253697,-500.0,0.00032053,2]
[357204517,1743892253706,-246.36014356,0.00032053,2]
[357204518,1743892253716,-1136.07,0.00032053,2]
[357204519,1743892253726,-173.52936099,0.00032053,2]
[357204520,1743892253736,-500.03,0.00032053,2]
[357204521,1743892253745,-500.0,0.00032053,2]
[357204522,1743892253755,-500.0,0.00032053,2]
[357204523,1743892253765,-500.0,0.00032053,2]
[357204524,1743892253774,-215.68932741,0.00032053,2]
[357204525,1743892253784,-500.0,0.00032053,2]
[357204526,1743892253793,-500.0,0.00032053,2]
[357204527,1743892253803,-5132.98,0.00032053,2]
[357204528,1743892253812,-500.0,0.00032053,2]
[357204529,1743892253822,-500.0,0.00032053,2]
[357204530,1743892253831,-2053.9,0.00032053,2]
[357204531,1743892253841,-500.0,0.00032053,2]
[357204532,1743892253850,-500.0,0.00032053,2]
[357204533,1743892253859,-756.46,0.00032053,2]
[357204534,1743892253868,-554.6649509,0.00032053,2]
[357204535,1743892253878,-500.0,0.00032053,2]
[357204536,1743892253888,-724.39,0.00032053,2]
[357204537,1743892253897,-500.0,0.00032053,2]
[357204538,1743892253906,-500.0,0.00032053,2]
[357204539,1743892253916,-9863.12,0.00032053,2]
[357204540,1743892253925,-358.8342151,0.00032053,2]
[357204541,1743892253935,-500.0,0.00032053,2]
[357204542,1743892253945,-500.0,0.00032053,2]
[357204543,1743892253955,-500.0,0.00032053,2]
[357204544,1743892253964,-500.0,0.00032053,2]
[357204545,1743892253974,-1217.37,0.00032053,2]
[357204546,1743892253983,-500.0,0.00032053,2]
[357204547,1743892253992,-500.0,0.00032053,2]
[357204548,1743892254002,-500.0,0.00032053,2]
[357204549,1743892254012,-1355.77,0.00032053,2]
[357204550,1743892254021,-500.0,0.00032053,2]
[357204551,1743892254030,-500.0,0.00032053,2]
[357204552,1743892254040,-500.0,0.00032053,2]
[357204553,1743892254050,-500.0,0.00032053,2]
[357204554,1743892254060,-500.0,0.00032053,2]
[357204555,1743892254069,-500.0,0.00032053,2]
[357204556,1743892254078,-500.0,0.00032053,2]
[357204557,1743892254089,-500.0,0.00032054,2]
[357204558,1743892254098,-500.0,0.00032054,2]
[357204559,1743892254108,-668.27,0.00032054,2]
[357204560,1743892254118,-683.11,0.00032054,2]
[357204561,1743892254127,-500.0,0.00032054,2]
[357204562,1743892254136,-500.0,0.00032054,2]
[357204563,1743892254146,-500.0,0.00032054,2]
[357204564,1743892254155,-4035.3,0.00032054,2]
[357204565,1743892254165,-500.0,0.00032054,2]
[357204566,1743892254175,-500.0,0.00032054,2]
[357204567,1743892254184,-500.0,0.00032054,2]
[357204568,1743892254194,-500.0,0.00032054,2]
[357204569,1743892254205,-500.0,0.00032054,2]
[357204570,1743892254215,-500.0,0.00032054,2]
[357204571,1743892254225,-500.0,0.00032054,2]
[357204572,1743892254234,-500.0,0.00032054,2]
[357204573,1743892254244,-500.0,0.00032054,2]
[357204574,1743892254253,-500.0,0.00032054,2]
[357204575,1743892254263,-505.35,0.00032232,90]
[357204576,1743892254272,-300.86,0.00032232,10]
[357204577,1743892254281,-8688.26,0.00032232,2]
[357204578,1743892254290,-150.99,0.00032232,2]
[357204579,1743892254300,-9848.71,0.00032232,2]
[357204580,1743892254309,-196.2,0.00032232,2]
[357204581,1743892254319,-9999.99,0.00032232,2]